bitfinex-derivatives/quotes_SOLF0:USTF0_20251119
["timestamp","ask_amount","ask_price","bid_price","bid_amount"]
[1763523264319,0.05305037,140.31,140.3,40.43]
[1763523265914,0.05305037,140.31,140.3,3.03]
[1763523266120,0.05305037,140.31,140.3,40.43]
[1763523267317,3.21,140.37,140.31,3.01]
[1763523268016,3.21,140.41,140.32,3.01]
[1763523268421,3.26204017,140.38,140.35,0.04557406]
[1763523268614,3.26204017,140.38,140.36,37.4]
[1763523270425,3.21,140.37,140.36,37.4]
[1763523271221,3.21,140.37,140.35,0.04557406]
[1763523271713,3.26204017,140.38,140.35,3.05557406]
[1763523272211,9.67804017,140.38,140.35,0.04557406]
[1763523272520,3.26204017,140.38,140.35,0.04557406]
[1763523273519,3.28,140.36,140.28,3.02]
[1763523274123,3.28,140.36,140.29,37.4]
[1763523274721,3.28,140.33,140.31,0.05100477]
[1763523274918,9.6982,140.33,140.31,0.05100477]
[1763523275118,3.3325603,140.34,140.31,3.07100477]
[1763523275313,3.3325603,140.34,140.31,0.05100477]
[1763523275830,3.3325603,140.34,140.31,3.07100477]
[1763523276010,0.0525603,140.34,140.31,3.07100477]
[1763523276921,3.3325603,140.34,140.31,3.07100477]
[1763523277123,3.3325603,140.34,140.31,0.05100477]
[1763523277323,3.3325603,140.34,140.31,3.07100477]
[1763523278925,9.7502603,140.34,140.31,3.07100477]
[1763523279226,3.3325603,140.34,140.31,3.07100477]
[1763523280229,3.3325603,140.34,140.31,0.05100477]
[1763523280827,3.28,140.32,140.31,0.05100477]
[1763523282830,3.3325603,140.34,140.31,3.07100477]
[1763523283029,0.0525603,140.34,140.31,3.07100477]
[1763523284829,3.3325603,140.34,140.31,3.07100477]
[1763523285126,0.0525603,140.34,140.31,3.07100477]
[1763523285832,0.0525603,140.34,140.32,37.4]
[1763523286730,0.0525603,140.34,140.31,3.07100477]
[1763523287041,3.3325603,140.34,140.31,3.07100477]
[1763523287332,0.0525603,140.34,140.32,40.42]
[1763523291334,0.0525603,140.34,140.32,3.02]
[1763523291636,0.0525603,140.34,140.32,40.42]
[1763523292936,6.4702603,140.34,140.32,40.42]
[1763523293132,6.4702603,140.34,140.31,0.05100477]
[1763523293133,3.3325603,140.34,140.31,0.05100477]
[1763523293441,3.28,140.33,140.31,0.05100477]
[1763523293636,6.4186,140.32,140.31,0.05100477]
[1763523293941,9.6986,140.32,140.31,0.05100477]
[1763523297843,9.6986,140.32,140.25,3.02]
[1763523297844,3.28,140.29,140.25,3.02]
[1763523298637,6.4209,140.27,140.25,3.02]
[1763523298945,6.47449969,140.27,140.25,3.06575052]
[1763523299241,3.33359969,140.27,140.25,0.04575052]
[1763523299447,3.33359969,140.27,140.25,37.44575052]
[1763523300747,9.75449969,140.27,140.25,40.46575052]
[1763523300948,0.05359969,140.27,140.25,40.46575052]
[1763523301649,6.47449969,140.27,140.25,40.46575052]
[1763523302245,3.28,140.26,140.25,0.04575052]
[1763523302441,3.28,140.24,140.19,3.02]
[1763523302644,3.28,140.27,140.22,3.02]
[1763523303148,3.28,140.28,140.24,3.02]
[1763523303549,0.0513033,140.27,140.25,3.05092441]
[1763523303753,1.90778231,140.33,140.26,3.0]
[1763523304050,2.99,140.33,140.26,3.0]
[1763523304350,6.4191,140.31,140.27,3.0]
[1763523304752,0.04722542,140.3,140.28,3.05161494]
[1763523305348,0.04722542,140.3,140.29,3.0]
[1763523305650,6.417,140.36,140.29,3.0]
[1763523305953,9.407,140.36,140.31,3.0]
[1763523306346,6.4159,140.38,140.33,3.0]
[1763523306549,2.99,140.41,140.35,3.0]
[1763523306853,0.05396675,140.39,140.37,3.05231397]
[1763523307044,3.04396675,140.39,140.37,0.05231397]
[1763523308353,0.05396675,140.39,140.37,3.05231397]
[1763523308548,0.05396675,140.39,140.37,0.05231397]
[1763523308743,2.99,140.38,140.37,0.05231397]
[1763523309650,2.99,140.36,140.32,3.0]
[1763523309851,2.99,140.36,140.33,40.42]
[1763523310444,2.99,140.35,140.24,3.0]
[1763523310653,0.05031746,140.31,140.28,3.04828181]
[1763523310845,0.05031746,140.31,140.28,40.46828181]
[1763523311045,6.46961746,140.31,140.28,40.46828181]
[1763523311961,6.4197,140.3,140.28,40.46828181]
[1763523312253,6.4197,140.3,140.28,37.46828181]
[1763523313156,3.04031746,140.31,140.28,37.46828181]
[1763523313657,9.45951746,140.31,140.28,37.46828181]
[1763523313955,9.45951746,140.31,140.28,40.46828181]
[1763523314256,9.45951746,140.31,140.28,37.46828181]
[1763523314849,9.45951746,140.31,140.28,40.46828181]
[1763523315044,6.46951746,140.31,140.28,37.46828181]
[1763523315354,9.4096,140.3,140.28,37.46828181]
[1763523315554,0.05031746,140.31,140.28,40.46828181]
[1763523315853,2.99,140.29,140.28,0.04828181]
[1763523316049,2.99,140.29,140.22,4.90778231]
[1763523316248,2.99,140.29,140.24,40.42]
[1763523316448,6.4211,140.27,140.24,40.42]
[1763523317063,9.46213315,140.27,140.24,40.47359036]
[1763523317653,0.05103315,140.27,140.25,3.0]
[1763523317861,102.8243,140.34,140.25,3.0]
[1763523318150,6.4203,140.29,140.25,3.0]
[1763523318356,9.4103,140.29,140.26,37.42]
[1763523318656,2.99,140.28,140.22,3.0]
[1763523318854,0.05402025,140.26,140.24,0.05039359]
[1763523319051,0.05402025,140.26,140.24,40.49039359]
[1763523319244,0.05402025,140.26,140.25,3.0]
[1763523323563,0.05402025,140.26,140.25,40.42]
[1763523323858,0.05402025,140.26,140.25,37.42]
[1763523325162,0.05402025,140.26,140.24,0.05039359]
[1763523325353,0.05402025,140.26,140.24,40.46039359]
[1763523326861,6.47542025,140.26,140.24,40.46039359]
[1763523327061,9.70542025,140.26,140.24,0.05039359]
[1763523327461,9.6523,140.24,140.2,2.97]
[1763523327664,9.6523,140.24,140.21,40.39]
[1763523328463,9.70487163,140.24,140.21,40.44399906]
[1763523328667,9.6528,140.23,140.21,0.05399906]
[1763523329158,3.23,140.23,140.21,0.05399906]
[1763523331565,9.6528,140.23,140.21,0.05399906]
[1763523331766,9.6528,140.23,140.14,21.36432317]
[1763523331767,3.23,140.21,140.15,2.97]
[1763523332359,99.899,140.25,140.15,2.97]
[1763523332562,3.23,140.24,140.17,2.97]
[1763523332769,3.28221953,140.22,140.19,0.04847374]
[1763523333066,3.23,140.2,140.19,0.04847374]
[1763523333971,2.98,140.18,140.11,3.28]
[1763523334170,2.98,140.18,140.11,40.72]
[1763523334664,2.98,140.16,140.09,6.5518744]
[1763523334869,2.98,140.16,140.09,42.75003734]
[1763523335071,3.03183025,140.14,140.1,3.28]
[1763523336959,0.05183025,140.14,140.1,3.28]
[1763523337769,0.05183025,140.14,140.11,40.74]
[1763523338175,0.05183025,140.14,140.12,3.28]
[1763523339481,2.98,140.2,140.12,3.28]
[1763523340281,0.04816434,140.17,140.15,0.04511074]
[1763523340673,3.02816434,140.17,140.15,0.04511074]
[1763523341278,2.98,140.16,140.15,0.04511074]
[1763523345781,0.04816434,140.17,140.15,0.04511074]
[1763523345972,0.04816434,140.17,140.15,3.32511074]
[1763523346781,3.02816434,140.17,140.15,0.04511074]
[1763523347489,9.45366434,140.17,140.15,0.04511074]
[1763523347680,2.98,140.16,140.15,0.04511074]
[1763523347988,9.45366434,140.17,140.15,0.04511074]
[1763523348786,0.04816434,140.17,140.15,3.32511074]
[1763523349290,3.02816434,140.17,140.15,0.04511074]
[1763523349789,0.04816434,140.17,140.15,0.04511074]
[1763523351088,6.47366434,140.17,140.15,0.04511074]
[1763523351393,9.45366434,140.17,140.15,0.04511074]
[1763523351587,9.45366434,140.17,140.14,37.48]
[1763523351588,2.98,140.13,140.1,3.28]
[1763523351795,2.98,140.16,140.1,3.28]
[1763523352296,6.4269,140.14,140.1,3.28]
[1763523352590,0.04806845,140.13,140.1,3.28]
[1763523353286,0.04806845,140.13,140.1,37.5]
[1763523353287,3.02806845,140.13,140.1,37.5]
[1763523353685,6.4278,140.12,140.1,37.5]
[1763523355004,6.4278,140.12,140.09,5.31003734]
[1763523355291,6.4282,140.11,140.09,42.81003734]
[1763523355792,9.45566845,140.13,140.09,42.81003734]
[1763523356496,9.45566845,140.13,140.1,3.28]
[1763523356891,6.47566845,140.13,140.1,3.28]
[1763523357491,6.4278,140.12,140.09,39.53003734]
[1763523357697,6.4278,140.12,140.1,3.28]
[1763523358496,6.4278,140.12,140.09,2.03003734]
[1763523358689,3.02806845,140.13,140.1,37.5]
[1763523359398,2.98,140.12,140.09,39.53003734]
[1763523359796,2.98,140.1,140.09,2.03003734]
[1763523360692,2.98,140.1,140.09,1.70642958]
[1763523361299,2.98,140.12,140.09,1.70642958]
[1763523361694,3.02806845,140.13,140.09,4.98642958]
[1763523361896,9.45566845,140.13,140.1,3.28]
[1763523362193,3.02806845,140.13,140.1,3.28]
[1763523362600,9.45536845,140.13,140.1,3.28]
[1763523363101,9.45536845,140.13,140.09,1.70642958]
[1763523363304,6.4278,140.12,140.09,4.98642958]
[1763523363600,0.04806845,140.13,140.1,3.08]
[1763523364402,0.04806845,140.13,140.11,37.5]
[1763523364601,0.04806845,140.13,140.1,3.08]
[1763523364803,0.04806845,140.13,140.11,37.5]
[1763523365104,6.47536845,140.13,140.11,37.5]
[1763523365302,9.44536845,140.13,140.1,40.58]
[1763523365595,2.97,140.1,140.09,1.70642958]
[1763523365994,3.01806845,140.13,140.09,4.78642958]
[1763523366203,9.3979,140.12,140.09,4.78642958]
[1763523366890,6.4283,140.11,140.09,4.78642958]
[1763523367095,6.4283,140.11,140.09,1.70642958]
[1763523367096,2.97,140.1,140.09,1.70642958]
[1763523369400,9.3983,140.11,140.09,1.70642958]
[1763523369706,2.97,140.1,140.09,1.70642958]
[1763523371604,6.4283,140.11,140.09,4.78642958]
[1763523371806,9.3983,140.11,140.09,1.70642958]
[1763523372102,2.97,140.1,140.09,1.70642958]
[1763523374010,2.97,140.1,140.09,2.958e-05]
[1763523374205,2.97,140.07,140.01,12.22]
[1763523374508,3.01954899,140.05,140.01,12.22]
[1763523374806,2.97,140.03,139.98,3.08]
[1763523375003,2.97,140.01,139.97,37.52]
[1763523375198,0.04504758,140.02,139.95,3.08]
[1763523375407,3.01504758,140.02,139.97,3.08]
[1763523375598,103.0403,140.01,139.94,89.94312353]
[1763523375793,0.05202556,139.99,139.96,3.08]
[1763523378406,0.05202556,139.99,139.97,37.54]
[1763523379113,6.48592556,139.99,139.96,3.08]
[1763523379312,0.05202556,139.99,139.97,37.54]
[1763523379513,3.02202556,139.99,139.97,37.54]
[1763523379715,9.4043,139.98,139.97,37.54]
[1763523379910,9.4043,139.98,139.94,85.62]
[1763523380115,6.4357,139.95,139.91,3.08]
[1763523380318,0.05031484,139.94,139.92,37.54]
[1763523380615,0.04550021,139.94,139.91,3.08]
[1763523380828,0.05403949,139.94,139.91,3.08]
[1763523381007,0.05403949,139.94,139.88,1.24372331]
[1763523381008,3.02403949,139.94,139.88,1.24372331]
[1763523381207,2.97,139.93,139.89,40.64]
[1763523381416,0.05185905,139.92,139.9,3.08]
[1763523381713,2.97,140.0,139.9,3.08]
[1763523382010,3.17,139.99,139.9,3.08]
[1763523382212,103.2658,139.97,139.9,3.08]
[1763523382417,3.17,139.97,139.91,37.56]
[1763523382611,3.17,139.97,139.92,3.24]
[1763523382811,0.05215225,139.95,139.94,3.24]
[1763523383010,0.04793491,139.96,139.94,3.24]
[1763523384021,103.32043491,139.96,139.93,0.05232205]
[1763523384219,3.17,139.95,139.93,0.05232205]
[1763523384909,0.04793491,139.96,139.93,0.05232205]
[1763523385112,0.04793491,139.96,139.93,3.29232205]
[1763523385820,3.21793491,139.96,139.93,0.00232205]
[1763523386019,3.17,139.87,139.8,5.27003734]
[1763523387112,0.05324803,139.85,139.81,3.24]
[1763523388420,3.17,139.91,139.82,3.24]
[1763523388613,3.17,139.91,139.84,3.24]
[1763523388814,3.17,139.94,139.86,3.24]
[1763523389310,6.4367,139.93,139.86,3.24]
[1763523389919,6.4371,139.92,139.86,3.24]
[1763523390115,100.1313,139.92,139.86,3.24]
[1763523390322,3.17,139.9,139.86,37.68]
[1763523390514,3.17,139.88,139.85,37.68]
[1763523390715,103.3323,139.88,139.82,3.24]
[1763523390918,9.609,139.88,139.82,3.24]
[1763523391221,3.17,139.91,139.84,3.24]
[1763523391716,3.17,139.93,139.84,3.24]
[1763523392216,0.04822585,139.85,139.84,3.24]
[1763523392812,3.17,139.96,139.85,3.24]
[1763523393011,3.17,139.95,139.85,3.24]
[1763523393320,6.4367,139.93,139.85,3.24]
[1763523393520,3.25,139.93,139.85,3.24]
[1763523393816,3.25,139.93,139.86,37.7]
[1763523394007,9.6876,139.91,139.86,40.79]
[1763523394207,105.0954713,139.97,139.87,3.09]
[1763523394522,6.4366,139.93,139.87,3.09]
[1763523394720,0.05280736,139.91,139.88,40.79]
[1763523395019,0.05280736,139.91,139.88,40.84391736]
[1763523395714,0.05280736,139.91,139.88,3.14391736]
[1763523395909,0.05280736,139.91,139.88,40.84391736]
[1763523396814,0.05280736,139.91,139.88,3.14391736]
[1763523397512,3.30280736,139.91,139.88,0.05391736]
[1763523397721,9.74040736,139.91,139.88,0.05391736]
[1763523398715,0.05280736,139.91,139.89,3.09]
[1763523399124,0.05280736,139.91,139.9,40.79]
[1763523401320,0.05280736,139.91,139.9,37.7]
[1763523401523,3.30280736,139.91,139.88,0.05391736]
[1763523401721,0.05280736,139.91,139.89,3.09]
[1763523403417,0.05280736,139.91,139.88,37.75391736]
[1763523403618,0.05280736,139.91,139.88,40.84391736]
[1763523403822,0.05280736,139.91,139.88,37.75391736]
[1763523404124,0.05280736,139.91,139.89,40.79]
[1763523405827,0.05280736,139.91,139.9,3.09]
[1763523409534,6.435,139.97,139.9,3.09]
[1763523409730,3.25,139.99,139.9,3.09]
[1763523409925,3.25,139.99,139.94,3.09]
[1763523410225,103.3124,140.02,139.96,3.09]
[1763523410425,3.25,140.01,139.96,3.09]
[1763523410620,3.297016,140.0,139.97,0.05345257]
[1763523410822,6.4338,139.99,139.97,0.05345257]
[1763523411321,3.297016,140.0,139.97,0.05345257]
[1763523412217,3.25,139.98,139.93,37.7]
[1763523412528,3.25,139.98,139.93,40.79]
[1763523412722,6.4351,139.96,139.93,40.79]
[1763523413030,6.4351,139.96,139.94,3.09]
[1763523413224,6.48444682,139.96,139.94,0.0468783]
[1763523413626,9.73444682,139.96,139.94,0.0468783]
[1763523414532,3.25,139.95,139.94,0.0468783]
[1763523415030,3.29934682,139.96,139.94,0.0468783]
[1763523416031,9.73484682,139.96,139.94,0.0468783]
[1763523416325,0.04934682,139.96,139.94,3.1368783]
[1763523416533,3.29934682,139.96,139.94,0.0468783]
[1763523417334,3.25,139.95,139.94,0.0468783]
[1763523418834,6.48454682,139.96,139.94,0.0468783]
[1763523419132,9.73454682,139.96,139.94,0.0468783]
[1763523419628,6.48454682,139.96,139.94,0.0468783]
[1763523419829,6.48454682,139.96,139.94,3.1368783]
[1763523420728,0.04934682,139.96,139.94,3.1368783]
[1763523421125,0.04934682,139.96,139.94,0.0468783]
[1763523422832,0.04934682,139.96,139.94,3.1368783]
[1763523423833,100.0559,140.03,139.94,3.1368783]
[1763523423834,3.16,140.02,139.94,3.1368783]
[1763523424034,3.16,140.02,139.94,3.09]
[1763523424231,3.16,139.98,139.94,3.09]
[1763523424532,3.16,139.98,139.93,37.68]
[1763523424731,100.1179,139.94,139.91,0.19458]
[1763523424932,100.132,139.92,139.85,24.14]
[1763523425234,3.16,139.91,139.85,24.14]
[1763523425529,100.1092,139.95,139.86,3.14]
[1763523425530,3.16,139.95,139.86,3.14]
[1763523425731,0.04534615,139.92,139.89,3.18572436]
[1763523425933,3.20534615,139.92,139.89,3.18572436]
[1763523427135,0.04534615,139.92,139.89,3.18572436]
[1763523428733,6.48234615,139.92,139.89,3.18572436]
[1763523429030,0.04534615,139.92,139.89,3.18572436]
[1763523429836,6.48254615,139.92,139.89,3.18572436]
[1763523430237,0.04534615,139.92,139.89,3.18572436]
[1763523432636,0.04534615,139.92,139.89,0.04572436]
[1763523432637,9.64234615,139.92,139.89,0.04572436]
[1763523432831,9.64234615,139.92,139.89,37.72572436]
[1763523433038,3.16,139.91,139.89,37.72572436]
[1763523433636,9.5977,139.91,139.89,37.72572436]
[1763523433839,6.4377,139.91,139.89,37.72572436]
[1763523434636,9.5977,139.91,139.89,0.04572436]
[1763523434837,3.16,139.9,139.89,0.04572436]
[1763523435642,9.5977,139.91,139.89,0.04572436]
[1763523436141,3.16,139.9,139.89,0.04572436]
[1763523436840,3.16,139.88,139.84,40.82]
[1763523437341,6.4398,139.86,139.84,40.82]
[1763523437738,6.4398,139.86,139.84,40.86931526]
[1763523437940,6.4925266,139.86,139.84,40.86931526]
[1763523438340,0.0527266,139.86,139.84,40.86931526]
[1763523438742,0.0527266,139.86,139.85,3.14]
[1763523440441,0.0527266,139.86,139.84,40.86931526]
[1763523441142,0.0527266,139.86,139.85,3.14]
[1763523441943,6.4387,139.89,139.85,3.14]
[1763523442130,100.1387,139.91,139.85,3.14]
[1763523442337,6.4389,139.88,139.85,3.14]
[1763523442842,6.49118015,139.88,139.85,3.18911517]
[1763523443440,6.4393,139.87,139.85,3.18911517]
[1763523443645,9.6693,139.87,139.85,37.70911517]
[1763523443847,3.23,139.86,139.85,0.04911517]
[1763523444143,6.4411,139.83,139.8,5.04003734]
[1763523444444,6.4411,139.83,139.81,37.66]
[1763523444645,6.4411,139.83,139.81,40.67]
[1763523444844,6.4405,139.85,139.82,3.01]
[1763523445045,6.4405,139.85,139.82,0.05168866]
[1763523445046,3.2806278,139.85,139.82,0.05168866]
[1763523445248,9.6708,139.84,139.82,0.05168866]
[1763523445546,6.4408,139.84,139.82,0.05168866]
[1763523445748,0.0506278,139.85,139.82,3.06168866]
[1763523447051,0.0506278,139.85,139.84,3.01]
[1763523449251,3.23,139.93,139.85,103.185]
[1763523449446,100.0869,139.99,139.87,3.01]
[1763523449447,103.3219,139.98,139.87,3.01]
[1763523449748,3.23,139.97,139.87,3.01]
[1763523450354,0.04843611,139.93,139.91,0.0470713]
[1763523450555,0.04843611,139.93,139.91,37.7070713]
[1763523450956,3.27843611,139.93,139.91,37.7070713]
[1763523451658,9.71493611,139.93,139.91,37.7070713]
[1763523451863,3.23,139.92,139.91,0.0470713]
[1763523453457,2.98,139.91,139.83,9.4507]
[1763523453661,2.98,139.89,139.85,3.01]
[1763523453959,2.98,139.93,139.85,3.01]
[1763523454153,6.437,139.92,139.88,3.01]
[1763523454360,9.417,139.92,139.88,3.01]
[1763523454558,0.04728684,139.91,139.89,0.0542532]
[1763523455260,0.04728684,139.91,139.89,3.0642532]
[1763523455762,0.04728684,139.91,139.9,37.66]
[1763523456368,0.04728684,139.91,139.9,40.67]
[1763523459070,9.46498684,139.91,139.89,0.0542532]
[1763523459267,6.48498684,139.91,139.89,0.0542532]
[1763523459666,9.46498684,139.91,139.89,0.0542532]
[1763523460366,2.98,139.9,139.89,0.0542532]
[1763523463567,2.98,139.85,139.8,5.04003734]
[1763523463775,2.98,139.82,139.8,3.734e-05]
[1763523463967,9.4217,139.82,139.8,3.734e-05]
[1763523464166,2.98,139.81,139.8,3.734e-05]
[1763523464870,9.4238,139.77,139.74,88.79]
[1763523465071,6.4438,139.77,139.74,3.01]
[1763523465267,2.98,139.82,139.74,3.01]
[1763523465462,6.4427,139.8,139.74,3.01]
[1763523465667,2.98,139.78,139.73,40.67]
[1763523465869,0.05347693,139.77,139.74,3.01]
[1763523467378,6.4443,139.76,139.73,3.01]
[1763523468072,9.4243,139.76,139.71,40.67]
[1763523468271,2.98,139.74,139.71,3.01]
[1763523468575,2.98,139.74,139.69,40.67]
[1763523468775,3.03382005,139.73,139.69,37.66]
[1763523468972,0.05382005,139.73,139.7,3.01]
[1763523471575,2.98,139.8,139.72,3.01]
[1763523471776,2.98,139.83,139.72,3.01]
[1763523471982,6.4423,139.81,139.72,3.01]
[1763523472278,103.1785,139.83,139.72,3.01]
[1763523472489,0.05295341,139.79,139.76,0.05382005]
[1763523472671,2.98,139.78,139.76,0.05382005]
[1763523473077,0.05295341,139.79,139.76,0.05382005]
[1763523473277,0.05295341,139.79,139.76,3.06382005]
[1763523473577,3.03295341,139.79,139.76,3.06382005]
[1763523473981,0.05295341,139.79,139.76,3.06382005]
[1763523475267,2.98,139.87,139.77,3.01]
[1763523476372,0.05309271,139.83,139.81,3.06406614]
[1763523476578,100.133,139.92,139.83,3.01]
[1763523476579,2.98,139.9,139.83,3.01]
[1763523477175,2.98,139.93,139.85,3.01]
[1763523477378,2.98,139.93,139.86,37.72]
[1763523477575,3.0280964,139.91,139.88,0.04530025]
[1763523478081,103.1720964,139.91,139.88,0.04530025]
[1763523478279,2.98,139.87,139.84,23.52]
[1763523478471,2.98,139.87,139.82,3.01]
[1763523478778,6.4404,139.85,139.83,37.72]
[1763523479180,6.49092911,139.85,139.83,37.76654026]
[1763523479476,9.47092911,139.85,139.83,37.76654026]
[1763523479674,9.47092911,139.85,139.83,0.04654026]
[1763523479675,2.98,139.84,139.83,0.04654026]
[1763523479878,6.4417,139.82,139.78,3.01]
[1763523480081,2.98,139.82,139.77,40.75]
[1763523480378,6.4423,139.81,139.77,37.74]
[1763523480773,0.04959526,139.8,139.78,0.05261824]
[1763523480973,0.04959526,139.8,139.78,3.06261824]
[1763523481279,103.1343,139.89,139.78,4.50261824]
[1763523481476,2.98,139.87,139.79,3.01]
[1763523481774,2.98,139.83,139.77,37.74]
[1763523482177,0.05024627,139.81,139.79,0.04743703]
[1763523482480,0.05024627,139.81,139.79,3.05743703]
[1763523482679,103.1343,139.89,139.79,3.05743703]
[1763523482980,103.1343,139.89,139.79,3.01]
[1763523483183,6.439,139.88,139.8,3.01]
[1763523483675,0.04695983,139.85,139.83,0.05357297]
[1763523483973,0.04695983,139.85,139.83,3.04357297]
[1763523484275,0.04695983,139.85,139.83,0.05357297]
[1763523484682,0.04695983,139.85,139.83,3.04357297]
[1763523485680,0.04695983,139.85,139.83,0.05357297]
[1763523486685,6.48735983,139.85,139.83,0.05357297]
[1763523486883,9.66735983,139.85,139.83,0.05357297]
[1763523487086,0.04695983,139.85,139.83,3.04357297]
[1763523487385,0.04695983,139.85,139.83,0.05357297]
[1763523487776,3.22695983,139.85,139.83,0.05357297]
[1763523488688,9.66735983,139.85,139.83,0.05357297]
[1763523489189,3.18,139.84,139.83,0.05357297]
[1763523489984,6.4417,139.82,139.74,2.99]
[1763523490282,3.18,139.78,139.74,2.99]
[1763523490484,3.18,139.78,139.7,37.76]
[1763523490485,6.4455,139.74,139.71,2.99]
[1763523490675,9.6255,139.74,139.7,37.76]
[1763523490877,3.18,139.74,139.7,37.76]
[1763523491078,0.05135125,139.73,139.71,0.04699072]
[1763523491487,9.67735125,139.73,139.71,0.04699072]
[1763523492184,3.23135125,139.73,139.71,0.04699072]
[1763523492786,9.67715125,139.73,139.71,0.04699072]
[1763523492990,3.18,139.72,139.71,0.04699072]
[1763523494177,3.23135125,139.73,139.67,37.78]
[1763523494782,9.6268,139.71,139.67,37.78]
[1763523494979,3.18,139.71,139.64,4.23579366]
[1763523495290,0.04785918,139.69,139.66,0.04584252]
[1763523495681,3.22785918,139.69,139.66,0.04584252]
[1763523495882,6.4482,139.68,139.66,0.04584252]
[1763523496183,3.22785918,139.69,139.66,0.04584252]
[1763523497089,9.67555918,139.69,139.66,0.04584252]
[1763523497884,3.22785918,139.69,139.66,0.04584252]
[1763523498788,0.04785918,139.69,139.66,3.03584252]
[1763523506897,9.6281,139.68,139.66,0.04584252]
[1763523507097,0.04785918,139.69,139.66,3.04584252]
[1763523507496,6.49545918,139.69,139.66,3.04584252]
[1763523507797,3.22785918,139.69,139.66,0.04584252]
[1763523507999,9.6281,139.68,139.66,0.04584252]
[1763523508487,3.18,139.67,139.66,0.04584252]
[1763523510397,3.18,139.65,139.61,3.0]
[1763523511095,6.4504,139.63,139.6,37.78]
[1763523511401,0.05318749,139.63,139.61,3.0]
[1763523511588,3.18,139.71,139.63,3.0]
[1763523512101,3.18,139.7,139.63,3.0]
[1763523512299,6.448,139.68,139.63,3.0]
[1763523512500,3.18,139.7,139.63,3.0]
[1763523512696,0.05496705,139.68,139.65,3.05308316]
[1763523512894,3.23496705,139.68,139.65,0.05308316]
[1763523514301,6.4485,139.67,139.65,0.05308316]
[1763523514501,3.23496705,139.68,139.65,3.05308316]
[1763523514799,3.23496705,139.68,139.65,0.05308316]
[1763523515595,0.05496705,139.68,139.65,3.05308316]
[1763523515899,0.05496705,139.68,139.67,3.0]
[1763523516700,3.13,139.74,139.67,3.0]
[1763523517197,3.13,139.77,139.68,3.0]
[1763523517905,0.04700964,139.74,139.72,3.0]
[1763523518297,3.13,139.8,139.73,3.0]
[1763523518799,3.13,139.8,139.72,37.78]
[1763523518800,3.13,139.77,139.72,37.78]
[1763523518998,3.13,139.77,139.72,40.78]
[1763523519204,3.13,139.77,139.72,37.78]
[1763523519408,3.13,139.75,139.73,0.04659923]
[1763523519591,3.17717846,139.76,139.73,0.04659923]
[1763523521405,9.5749,139.75,139.73,0.04659923]
[1763523521606,9.5749,139.75,139.65,100.3204]
[1763523521607,3.13,139.72,139.64,3.0]
[1763523521901,6.4468,139.71,139.64,3.0]
[1763523522200,100.2835,139.71,139.64,3.0]
[1763523522507,3.13,139.67,139.66,0.04677062]
[1763523522705,3.13,139.66,139.63,37.8]
[1763523523804,3.17649137,139.66,139.63,37.85165396]
[1763523524303,0.04649137,139.66,139.64,3.0]
[1763523526702,0.04649137,139.66,139.63,37.87165396]
[1763523526904,0.04649137,139.66,139.63,40.87165396]
[1763523527206,0.04649137,139.66,139.59,1.24641834]
[1763523527207,103.4688,139.63,139.58,3.0]
[1763523528207,3.18006271,139.62,139.59,0.03160135]
[1763523528409,0.05006271,139.62,139.59,3.03160135]
[1763523528707,0.05006271,139.62,139.59,0.03160135]
[1763523529007,6.4514,139.61,139.59,0.03160135]
[1763523529210,9.5814,139.61,139.59,0.03160135]
[1763523529900,0.05006271,139.62,139.59,3.03160135]
[1763523530500,0.05006271,139.62,139.6,3.0]
[1763523530705,3.18006271,139.62,139.59,37.87160135]
[1763523531210,3.18006271,139.62,139.59,0.03160135]